Cogmind - Beta 9.3 *** ADVENTURER MODE // 2020.01.05 @ 17:04:49 // Winter2019/RPGLIKE Player: PaultheNerd Result: Smashed by cave-in Performance ------------- Evolutions (1) 500 Regions Visited (3) 600 Robots Destroyed (43) 215 Value Destroyed (826) 826 Prototype IDs (3) 60 Alien Tech Used (0) 0 Bonus (38) 38 TOTAL SCORE: 2239 Bonus ------- High Alert Combat Kills 38 Cogmind --------- Core Integrity 0/600 Matter 214/300 Energy 156/160 System Corruption 0% Temperature Cool (2) Movement Walking (120) Location -9/Materials Parts ------- > --- POWER (1) -------- Light Nuclear Core > --- PROPULSION (2) --- Aluminum Leg Aluminum Leg > --- UTILITY (3) ------ Experimental Sensor Array > --- WEAPON (3) ------- Light Assault Rifle Rocket Launcher Rocket Launcher > --- INVENTORY (2) ---- Signal Generator Peak State ------------ > --- POWER ------------ Light Nuclear Core > --- PROPULSION ------- Aluminum Leg Aluminum Leg > --- UTILITY ---------- Experimental Sensor Array Targeting Computer High-powered Tractor Beam > --- WEAPON ----------- Light Assault Rifle Rocket Launcher Rocket Launcher > --- INVENTORY -------- Signal Generator [Rating: 19] Favorites ----------- Power Ion Engine Engine Ion Engine Power Core Light Nuclear Core Propulsion Aluminum Leg Leg Aluminum Leg Utility Targeting Computer Device Experimental Sensor Array Processor Targeting Computer Weapon Light Assault Rifle Ballistic Gun Light Assault Rifle Launcher Rocket Launcher Build | -11 -10 -10 -9 ------- Run | Scr Mat Min Mat Slots Evolved 5 | 2 . 2 1 Power . | . . . . Propulsion 1 | 1 . . . Utility 2 | . . 1 1 Weapon 2 | 1 . 1 . Parts Attached 12 | 5 2 2 3 Power 2 | 1 . . 1 Engine 1 | 1 . . . Core 1 | . . . 1 Reactor . | . . . . Propulsion 2 | 2 . . . Treads . | . . . . Leg 2 | 2 . . . Wheel . | . . . . Hover . | . . . . Flight . | . . . . Utility 4 | . 2 1 1 Device 2 | . . 1 1 Storage . | . . . . Processor 2 | . 2 . . Hackware . | . . . . Protection . | . . . . Artifact . | . . . . Weapon 4 | 2 . 1 1 Energy Gun . | . . . . Energy Cannon . | . . . . Ballistic Gun 2 | 2 . . . Ballistic Cannon . | . . . . Launcher 2 | . . 1 1 Special Weapon . | . . . . Impact Weapon . | . . . . Slashing Weapon . | . . . . Piercing Weapon . | . . . . Special Melee Weapon . | . . . . Unidentified Prototypes 1 | . . 1 . Parts Lost 2 | . . . 2 Power . | . . . . Propulsion . | . . . . Utility 2 | . . . 2 Weapon . | . . . . Highest Loss Streak 1 | . . . 1 Average Slot Usage (%) 98 | . 97 100 99 Engine 13 | . 16 12 8 Leg 27 | . 33 25 22 Device 8 | . . 11 21 Processor 12 | . 13 12 11 Ballistic Gun 25 | . 33 25 11 Launcher 8 | . . 10 21 Naked Turns . | . . . . Heaviest Build 16 | 7 7 12 16 Greatest Support 20 | 20 20 20 20 Greatest Overweight (x) 2 | 2 . . . Average Overweight (x) . | . . . . Largest Inventory Capacity 2 | 2 2 2 2 Average Capacity 1 | 1 2 2 2 Most Carried 2 | 1 2 2 2 Average Carried 1 | . 1 1 1 Final Capacity 2 | 2 2 2 2 Final Carried 2 | 1 2 2 1 Class Distribution -------------------- 61% | Mutant 38% | Gunner Dominant Class ---------------- Mutant | -10/Materials Gunner | -10/Mines Gunner | -9/Materials Resources | -11 -10 -10 -9 ----------- Run | Scr Mat Min Mat Matter Collected 606 | 225 105 26 250 Remotely 250 | . . . 250 Salvage Created 663 | . 112 . 551 Parts 79 | . 26 . 53 Haulers Intercepted 1 | . . . 1 Recyclers Shooed . | . . . . Parts Field Recycled . | . . . . Retrieved Matter . | . . . . Parts Self-Destructed . | . . . . Prevented . | . . . . Kills | -11 -10 -10 -9 ------- Run | Scr Mat Min Mat Combat Hostiles Destroyed 28 | . 11 . 17 Guns 20 | . 11 . 9 AOE 8 | . . . 8 Classes Destroyed 8 | . 3 . 5 Worker 3 | . . . 3 Builder 6 | . . . 6 Hauler 1 | . . . 1 Recycler 2 | . . . 2 Watcher 3 | . 2 . 1 Swarmer 13 | . 9 . 4 Grunt 13 | . 2 . 11 Sentry 2 | . . . 2 Best Kill Streak 15 | . 3 . 15 Combat Bots Only 10 | . 3 . 10 Max Kills in Single Turn 6 | . 2 . 6 Gunslinging 1 | . 1 . . Exploded 3 | . . . 3 Melee . | . . . . Uniques/NPCs Destroyed . | . . . . Combat | -11 -10 -10 -9 -------- Run | Scr Mat Min Mat Damage Taken 1391 | . 351 . 1040 Core 1116 | . 280 . 836 Absorbed by Shields . | . . . . Redirected to Core 874 | . 201 . 673 Core Remaining (%) 100 | 100 . 100 . Volleys Fired 80 | . 34 . 46 Largest 3 | . 2 . 3 Hottest 86 | . 40 . 86 Shots Fired 137 | . 68 . 69 Gun 113 | . 68 . 45 Cannon . | . . . . Launcher 24 | . . . 24 Special . | . . . . Kinetic 113 | . 68 . 45 Thermal . | . . . . Explosive 24 | . . . 24 Electromagnetic . | . . . . Robot Hit Streak 23 | . 13 . 23 Robot Miss Streak 2 | . 2 . 1 Penetration Max . | . . . . Secondary Targets 4 | . 4 . . Max Gunslinging Chain 1 | . 1 . . Shots Hit Robots 108 | . 53 . 55 Core Hits 76 | . 24 . 52 Critical Hits . | . . . . Critical Kills . | . . . . Critical Parts Destroyed . | . . . . Melee Attacks . | . . . . Impact . | . . . . Slashing . | . . . . Piercing . | . . . . Sneak Attacks . | . . . . Combat Hostiles . | . . . . Follow-up Attacks . | . . . . Damage Inflicted 2315 | . 398 . 1917 Guns 743 | . 398 . 345 Cannons . | . . . . Explosions 1572 | . . . 1572 Melee . | . . . . Ramming . | . . . . Kinetic 743 | . 398 . 345 Thermal . | . . . . Explosive 1572 | . . . 1572 Electromagnetic . | . . . . Impact . | . . . . Slashing . | . . . . Piercing . | . . . . Highest Corruption . | . . . . Average Corruption . | . . . . Corruption Purged . | . . . . Overload Shots . | . . . . Overflow Damage . | . . . . Projectiles . | . . . . Explosions . | . . . . Melee . | . . . . Knockbacks . | . . . . Impact . | . . . . Kinetic . | . . . . Secondary . | . . . . Self-Inflicted Damage 126 | . . . 126 Shots 4 | . . . 4 Rammed . | . . . . Targets Rammed . | . . . . Kicked . | . . . . Crushed . | . . . . Highest Temperature 126 | . 24 . 126 Average Temperature 33 | . 11 . 38 Received Heat Transfer 309 | . 78 . 231 Siege Activations . | . . . . Robots Corrupted . | . . . . Combat Hostiles . | . . . . Parts Fried . | . . . . Impact Corruptions . | . . . . Robots Melted . | . . . . Combat Hostiles . | . . . . Parts Melted . | . . . . Heat Transferred . | . . . . Parts Sabotaged . | . . . . Parts Stolen . | . . . . Parts Stripped . | . . . . Power Chain Reactions . | . . . . Missiles Intercepted . | . . . . Alert | -11 -10 -10 -9 ------- Run | Scr Mat Min Mat Peak Influence 536 | . 324 40 536 Average Influence 107 | . 142 21 222 Maximum Alert Level 2 | . 1 . 2 Low Security (%) 81 | 100 76 100 50 Level 1 12 | . 23 . 17 Level 2 5 | . . . 31 Level 3 . | . . . . Level 4 . | . . . . Level 5 . | . . . . High Security . | . . . . Max Security . | . . . . Squads Dispatched 3 | . 1 . 2 Investigation 1 | . 1 . . Extermination . | . . . . Reinforcement 2 | . . . 2 Assault . | . . . . Garrison . | . . . . Intercept . | . . . . Construction Impeded 1 | . . . 1 Haulers Reinforced . | . . . . Stealth | -11 -10 -10 -9 --------- Run | Scr Mat Min Mat Distress Signals 3 | . 1 . 2 Communications Jammed . | . . . . Distress Signals . | . . . . Times Spotted 38 | . 16 . 22 Peak Tracking Total 5 | . 4 . 5 Tactical Retreats . | . . . . Traps | -11 -10 -10 -9 ------- Run | Scr Mat Min Mat Traps Triggered 1 | . 1 . . Indirectly . | . . . . Trap Hack Attempts . | . . . . Triggered . | . . . . Disarmed . | . . . . Reprogrammed . | . . . . Reused . | . . . . Traps Extracted . | . . . . Installed . | . . . . Triggered . | . . . . Machines | -11 -10 -10 -9 ---------- Run | Scr Mat Min Mat Machines Disabled 3 | . . . 3 Max in Single Turn 3 | . . . 3 Machines Sabotaged . | . . . . Garrisons Compromised . | . . . . Overloaded Fab Kills . | . . . . Fab Network Shutdowns . | . . . . Hacking | -11 -10 -10 -9 --------- Run | Scr Mat Min Mat Machines Accessed 2 | . 2 . . Terminals 2 | . 2 . . Fabricators . | . . . . Repair Stations . | . . . . Recycling Units . | . . . . Scanalyzers . | . . . . Garrison Access . | . . . . Total Hacks 3 | . 3 . . Successful 3 | . 3 . . Failed . | . . . . Catastrophic . | . . . . Database Lockouts . | . . . . Manual . | . . . . Terminals 3 | . 3 . . Fabricators . | . . . . Repair Stations . | . . . . Recycling Units . | . . . . Scanalyzers . | . . . . Garrison Access . | . . . . Terminal Hacks 3 | . 3 . . Record 1 | . 1 . . Prototype ID Bank 1 | . 1 . . Level Access Points 1 | . 1 . . Fabricator Hacks . | . . . . Repair Station Hacks . | . . . . Recycling Unit Hacks . | . . . . Scanalyzer . | . . . . Garrison Access Hacks . | . . . . Unauthorized Hacks . | . . . . Terminals . | . . . . Fabricators . | . . . . Repair Stations . | . . . . Recycling Units . | . . . . Scanalyzers . | . . . . Garrison Access . | . . . . Data Cores Recovered . | . . . . Used . | . . . . Hacking Detections 2 | . 2 . . Full Trace Events . | . . . . Feedback Events . | . . . . Feedback Blocked . | . . . . Robot Schematics Acquired . | . . . . Robots Built . | . . . . Matter . | . . . . Time . | . . . . Total Robot Build Rating . | . . . . Part Schematics Acquired . | . . . . Parts Built . | . . . . Matter . | . . . . Time . | . . . . Total Part Build Rating . | . . . . Parts Repaired . | . . . . Time . | . . . . Parts Recycled . | . . . . Recycled Matter . | . . . . Retrieved Matter . | . . . . Retrieved Components . | . . . . Parts Scanalyzed . | . . . . Part Schematics Acquired . | . . . . Parts Damaged . | . . . . Bothacking | -11 -10 -10 -9 ------------ Run | Scr Mat Min Mat Used RIF Installer . | . . . . Robots Hacked . | . . . . Non-combat . | . . . . Combat . | . . . . Robot Hacks Applied . | . . . . Relay Couplers Released . | . . . . Robots Rewired . | . . . . Allies Hacked . | . . . . Hacks Repelled . | . . . . Allies | -11 -10 -10 -9 -------- Run | Scr Mat Min Mat Total Allies . | . . . . Largest Group . | . . . . Highest-Rated Group . | . . . . Highest-Rated Ally . | . . . . Total Orders . | . . . . Ally Attacks . | . . . . Total Damage . | . . . . Kills . | . . . . Allies Corrupted . | . . . . Allies Melted . | . . . . Intel | -11 -10 -10 -9 ------- Run | Scr Mat Min Mat Robot Analysis Total . | . . . . Derelict Logs Recovered 1 | . . 1 . Drone Launches . | . . . . Drone Recoveries . | . . . . Exploration | -11 -10 -10 -9 ------------- Run | Scr Mat Min Mat Turns Passed 1921 | 43 775 741 362 Spaces Moved 1396 | 39 542 608 207 Core 20 | 20 . . . Treads . | . . . . Legs 1376 | 19 542 608 207 Wheels . | . . . . Hover . | . . . . Flight . | . . . . Fastest Speed 50 | 50 120 120 120 Average Speed 119 | 89 120 120 120 Slowest Speed 150 | 150 120 120 120 Overloaded Moves . | . . . . Propulsion Burnouts . | . . . . Robots Hopped . | . . . . Cave-ins Triggered 2 | . . . 2 Exploration Rate (%) 54 | 4 86 99 28 Regions Visited 3 Branch Regions 1 Pre-discovered Areas . | . . . . Known Exits Taken 1 | . . 1 . Unknown Exits Taken 2 | 1 1 . . Scrap Searched 1 | . . 1 . Spaces Dug 20 | . . . 20 Terrain Destroyed 207 | . . . 207 Melee . | . . . . Projectile . | . . . . AOE 207 | . . . 207 Actions | -11 -10 -10 -9 --------- Run | Scr Mat Min Mat Total 1547 | 44 614 619 270 Wait 13 | . 5 8 . Move 1392 | 38 541 607 206 Hop . | . . . . Pick Up 10 | 1 6 1 2 Fast Attach 8 | 5 1 2 . Attach 4 | . 1 . 3 Detach . | . . . . Swap . | . . . . Drop 8 | . 5 1 2 Fire 80 | . 34 . 46 Melee . | . . . . Ram . | . . . . Kick . | . . . . Crush . | . . . . Escape Stasis . | . . . . Rewire . | . . . . Trap . | . . . . Miscellaneous 32 | . 21 . 11 Route ------- -11/Scrapyard -10/Materials (discovered 5 exits: *Mat x3 / [*Min x2]) -10/Mines (discovered 2 exits: *Mat x2) -9/Materials (discovered 1 exit: [*Mat]) History --------- Turn | Location | Event 8 | -11/Scrapyard | Upgraded with Propulsion slot (x1) 8 | -11/Scrapyard | Upgraded with Weapon slot (x1) 11 | -11/Scrapyard | Discovered new exit (range 16) 44 | -11/Scrapyard | Entered Materials 78 | -10/Materials | Identified exit to Materials 316 | -10/Materials | Build established: Mutant 574 | -10/Materials | Discovered new exit (range 16) 695 | -10/Materials | Discovered new exit (range 8) 819 | -10/Materials | Entered Mines 819 | -10/Mines | Found a damaged Exp. Sensor Array with a note attached 821 | -10/Mines | Reached level 2 833 | -10/Mines | Upgraded with Utility slot (x1) 833 | -10/Mines | Found Prototype Device 833 | -10/Mines | Identified Exp. Sensor Array 929 | -10/Mines | Received a Rocket Launcher from a helpful Derelict 930 | -10/Mines | Upgraded with Weapon slot (x1) 954 | -10/Mines | Discovered exit to Materials (range 16) 1050 | -10/Mines | Discovered exit to Materials (range 13) 1079 | -10/Mines | Met a Derelict testing a Signal Generator 1086 | -10/Mines | Found Signal Generator 1155 | -10/Mines | Found a hidden stash of uninstalled traps 1391 | -10/Mines | Build established: Gunner 1560 | -10/Mines | Entered Materials 1562 | -9/Materials | Reached level 3 1564 | -9/Materials | Upgraded with Utility slot (x1) 1718 | -9/Materials | Reached level 4 1778 | -9/Materials | Destroyed 10 combat bots 1805 | -9/Materials | Core integrity fell below 50% 1807 | -9/Materials | Reached level 5 1834 | -9/Materials | Crushed by falling debris 1869 | -9/Materials | Discovered new exit (range 7) 1922 | -9/Materials | Crushed by falling debris 1922 | -9/Materials | Smashed by cave-in Last Messages --------------- 01835_ Acquired 2 matter. 01836_ The unstable cave ceiling collapses. 01836_ R-06 Scavenger collects Wheel. 01840_ R-06 Scavenger collects Terrain Scanner. 01844_ A-02 Transporter destroyed. 01844_ G-34 Mercenary destroyed. 01845_ Acquired 28 matter. 01845_ R-06 Scavenger inserts Aluminum Leg into recycling unit. 01846_ Recycling unit begins recycling process. 01848_ R-06 Scavenger inserts Ion Engine into recycling unit. 01858_ R-06 Scavenger collects Ion Engine. 01869_ EXIT=FOUND 01877_ K-01 Serf collects debris. 01890_ Hpw. Tractor Beam destroyed. 01893_ Y-45 Defender destroyed. 01897_ The unstable cave ceiling collapses. 01897_ Heat Sink crushed. 01901_ The unstable cave ceiling collapses. 01922_ Crushed by falling debris. 01922_ Targeting Computer destroyed. Map ----- +----------------------------------------------------+ | | | | | | | | | | | | | | | | | | | | | | | | | | | | | | | | | | | | | | | | | | | | | | | ?????????????????????## ##???????????????????? | | ?????????????????????# #???????????????????? | | ?????????????????????# @ # #???????????????????? | | ????????????????????## #???????????????????? | | ????????????????????# # #???????????????????? | | ????????????########## ##???????????????????? | | ????????????# ## ##????????????????????? | | ????????????# ? # #????????????????????? | | ????????????# ## ! # #????????????????????? | | ????????????# ## #% ##???????????????????? | | ????????????# # = #???????????????????? | | ????????????# # T #???????????????????? | | ????????????####+### #???????????????????? | | ????????????# # #???????????????????? | | ????????????# < + #???????????????????? | | ????????????# # """ #???????????????????? | | ????????????##### # """ #???????????????????? | | ????????????????# # """ #???????????????????? | | ????????????????# # #???????????????????? | | ????????????????+ ##########???????????????????? | | ????????????????# #????????????????????????????? | | ????????????????# #????????????????????????????? | | ?? ############# ##???????????????????????????? | | ? ? #???????????????????????????? | | ? #???????????????????????????? | | ? ?"" +???????????????????????????? | | ? """ ?Y" #???????????????????????????? | +----------------------------------------------------+ Best States ------------- Heat Dissipation 25 Energy Generation 14 Energy Capacity 250 Matter Stores 300 Matter Capacity 300 Sight Range 16 Robot Scan Range 30 Terrain Scan Density 10 Resistance: KI 20 Resistance: TH 20 Resistance: EX 20 Resistance: EM 20 Resistance: I 20 Resistance: S 20 Resistance: P 20 Evasion (%) 50 Targeting Accuracy 5 Offensive Hacking 10 Item Schematics ----------------- None Robot Schematics ------------------ None Fabricated ------------ Nothing Alien Tech Used ----------------- None Achievements -------------- None Challenges ------------ None RPGLIKE | -11 -10 -10 -9 --------- Run | Scr Mat Min Mat Levels Raised 4 | . . 1 3 XP Earned 10749 | 4000 1320 500 4929 XP Spent 6050 | 1750 2200 1300 800 Upgrades 11 | 4 4 2 1 Propulsion Slot 1 | 1 . . . Utility Slot 2 | . . 1 1 Weapon Slot 2 | 1 . 1 . Inventory Capacity 2 | 2 . . . Ranged Accuracy 4 | . 4 . . Protomatter Created 333 | . 167 . 166 Integrity Restored 558 | . 354 . 204 Core 484 | . 280 . 204 Parts 74 | . 74 . . Protomatter Decayed 79 | . 19 22 38 Game ------ Seed TractorNuclearDriver Manual? 0 Play Time 00:22:02 Cumulative 36.7 hours Start 2020.01.05 @ 14:40:38 End 2020.01.05 @ 17:04:49 Sessions 1 Manual Loads 0 Difficulty Adventurer Special Mode Winter2019/RPGLIKE Game No. 37 Rogue 24 Adventurer 13 Explorer 0 Win Type - Total 0 Types 0/0/0/0/0/0/0 Lore% 18 Gallery% 30 Achievement% 28 Wizard Run 0 Options --------- ASCII 0 Keyboard 0 Movement Mouse Keybinds 0 Fullscreen 1 Font 18/SmallcapsGlow Map View 76x50 Tactical HUD 1 Map Filters NONE Filters NONE Steam 1 RUN: 43f1a901-51d3-49b5-a921-7f25aa0ca483